bitfinex/quotes_BTCUSD_20240717
["timestamp","ask_amount","ask_price","bid_price","bid_amount"]
[1721176784155,0.00837,65450.0,65449.0,3.83845933]
[1721176784329,0.00837,65450.0,65449.0,3.88373153]
[1721176784814,0.00837,65450.0,65449.0,4.08373153]
[1721176785767,0.00837,65450.0,65449.0,4.87983845]
[1721176786016,0.00837,65450.0,65449.0,5.59998837]
[1721176786285,0.00837,65450.0,65449.0,5.15051195]
[1721176786510,0.00837,65450.0,65449.0,4.81630716]
[1721176786673,0.00837,65450.0,65449.0,4.62163155]
[1721176786878,0.00837,65450.0,65449.0,4.81630069]
[1721176787101,1e-06,65452.0,65451.0,2.036218]
[1721176787437,1e-06,65452.0,65451.0,4.74190927]
[1721176787645,1e-06,65452.0,65451.0,4.90790927]
[1721176787779,1e-06,65452.0,65451.0,4.90782746]
[1721176788163,1e-06,65452.0,65451.0,4.85407236]
[1721176788333,1e-06,65452.0,65451.0,4.94444251]
[1721176788541,1e-06,65452.0,65451.0,4.95844251]
[1721176788769,0.04938045,65480.0,65458.0,2.936003]
[1721176788902,0.04938045,65480.0,65458.0,3.80323622]
[1721176788903,0.00277097,65479.0,65458.0,3.80323622]
[1721176789104,0.04938045,65480.0,65458.0,3.81044077]
[1721176789304,1e-06,65459.0,65458.0,4.8628622]
[1721176789545,1e-06,65459.0,65458.0,4.94241615]
[1721176789778,1e-06,65459.0,65458.0,5.0327268]
[1721176789931,1e-06,65459.0,65458.0,5.7467268]
[1721176790251,1e-06,65459.0,65458.0,5.74667612]
[1721176790452,0.00836,65485.0,65484.0,1.568963]
[1721176790651,0.00836,65485.0,65484.0,1.66861168]
[1721176790881,0.00836,65485.0,65484.0,1.67576284]
[1721176791474,0.00836,65485.0,65484.0,2.13556258]
[1721176792856,0.00836,65485.0,65484.0,2.13856258]
[1721176793055,0.00836,65485.0,65484.0,2.13956258]
[1721176793238,0.00836,65485.0,65484.0,2.18956258]
[1721176793566,0.00836,65485.0,65484.0,2.18556258]
[1721176793970,0.00836,65485.0,65484.0,2.19356258]
[1721176794548,0.00836,65485.0,65484.0,2.49898058]
[1721176794749,0.00836,65485.0,65484.0,2.68218058]
[1721176794950,1e-08,65485.0,65484.0,2.87765547]
[1721176795359,1e-08,65485.0,65484.0,2.90065547]
[1721176795779,1e-08,65485.0,65484.0,2.8846528]
[1721176796014,1e-08,65485.0,65484.0,1.78976284]
[1721176796201,1e-08,65485.0,65484.0,1.80376284]
[1721176796442,1e-08,65485.0,65484.0,1.28976284]
[1721176796622,1e-08,65485.0,65484.0,1.77576284]
[1721176796815,1e-08,65485.0,65484.0,1.80376284]
[1721176797224,1e-08,65485.0,65484.0,1.30376284]
[1721176797433,1e-08,65485.0,65484.0,2.09694458]
[1721176797627,1e-08,65485.0,65484.0,3.08455319]
[1721176797846,1e-08,65485.0,65484.0,3.10755319]
[1721176798095,1e-08,65485.0,65484.0,2.89355319]
[1721176798380,1e-08,65485.0,65484.0,3.65755319]
[1721176798536,1e-08,65485.0,65484.0,2.87955319]
[1721176798733,1e-08,65485.0,65484.0,2.75278058]
[1721176798936,0.04973031,65501.0,65488.0,1.929694]
[1721176799142,0.04973031,65501.0,65488.0,2.10168686]
[1721176799346,0.04973031,65501.0,65488.0,2.10879341]
[1721176799543,0.04973031,65501.0,65488.0,2.41419241]
[1721176799758,0.04973031,65501.0,65488.0,2.10879341]
[1721176799961,0.077,65496.0,65488.0,2.62279341]
[1721176800172,0.077,65496.0,65488.0,2.44603066]
[1721176800389,0.0634,65490.0,65488.0,1.45463166]
[1721176800605,0.0634,65490.0,65488.0,1.95463166]
[1721176800807,0.0634,65494.0,65488.0,2.00463166]
[1721176801045,0.0634,65494.0,65488.0,2.26003066]
[1721176801188,0.0634,65494.0,65488.0,1.76003066]
[1721176801390,0.0634,65494.0,65488.0,2.26003066]
[1721176801600,0.11313031,65501.0,65488.0,2.64293066]
[1721176801803,0.0634,65490.0,65488.0,2.45903066]
[1721176802047,0.0634,65490.0,65488.0,1.19924992]
[1721176802267,0.0634,65490.0,65488.0,1.18524992]
[1721176802417,0.0634,65490.0,65488.0,1.28524992]
[1721176802641,0.0634,65490.0,65488.0,1.79624992]
[1721176802980,0.0634,65490.0,65488.0,1.29624992]
[1721176803134,0.0634,65490.0,65488.0,1.28524992]
[1721176803342,0.0634,65490.0,65488.0,1.78524992]
[1721176803986,0.081,65492.0,65488.0,1.78524992]
[1721176803987,0.0652,65494.0,65488.0,2.14064892]
[1721176804160,0.0652,65494.0,65488.0,1.29824992]
[1721176804377,0.0652,65494.0,65488.0,1.79824992]
[1721176804807,0.0652,65494.0,65488.0,2.00263166]
[1721176805102,0.0652,65494.0,65488.0,1.78524992]
[1721176805621,0.0652,65494.0,65488.0,1.78624992]
[1721176805841,0.0652,65494.0,65488.0,1.80024992]
[1721176806139,0.14976,65489.0,65488.0,0.89485092]
[1721176806356,0.14976,65489.0,65488.0,0.13135392]
[1721176806507,0.302457,65489.0,65488.0,0.13135392]
[1721176806912,0.302457,65489.0,65488.0,0.12424737]
[1721176807113,0.302457,65489.0,65488.0,0.11024737]
[1721176807114,0.14976,65489.0,65488.0,0.11024737]
[1721176807319,0.14976,65489.0,65488.0,0.11802331]
[1721176807320,0.45960971,65489.0,65488.0,0.11802331]
[1721176807541,0.45960971,65489.0,65488.0,0.11724737]
[1721176807542,0.76223274,65489.0,65488.0,0.11724737]
[1721176807746,0.30414174,65489.0,65488.0,0.11724737]
[1721176807953,0.45960971,65489.0,65488.0,0.11724737]
[1721176808242,0.45683874,65489.0,65488.0,0.11724737]
[1721176808643,0.76223274,65489.0,65488.0,0.10324737]
[1721176808818,0.76223274,65489.0,65488.0,0.09624737]
[1721176809037,0.76223274,65489.0,65488.0,0.10512407]
[1721176809222,0.76223274,65489.0,65478.0,0.152722]
[1721176809223,0.0614,65484.0,65478.0,0.152722]
[1721176809408,0.06417097,65483.0,65478.0,0.305445]
[1721176809764,0.06417097,65483.0,65482.0,0.763567]
[1721176809966,0.0614,65483.0,65482.0,0.86169107]
[1721176810124,0.0614,65483.0,65482.0,0.38544433]
[1721176810324,0.0614,65483.0,65482.0,0.10592909]
[1721176812038,0.0614,65483.0,65482.0,0.11192909]
[1721176812228,0.1375,65483.0,65482.0,0.11192909]
[1721176812445,0.1375,65483.0,65482.0,0.09812407]
[1721176812646,0.1375,65483.0,65482.0,0.87149611]
[1721176812867,0.1375,65483.0,65482.0,0.87749611]
[1721176813066,0.1375,65483.0,65482.0,0.11392911]
[1721176813267,0.1375,65483.0,65482.0,0.57206911]
[1721176813470,0.1375,65483.0,65482.0,0.56606911]
[1721176813674,0.1375,65483.0,65482.0,0.56906911]
[1721176814284,0.1375,65483.0,65482.0,0.56606911]
[1721176815539,0.1375,65483.0,65482.0,0.56406911]
[1721176815850,0.1375,65483.0,65482.0,0.56906911]
[1721176816185,0.1375,65483.0,65482.0,0.87449611]
[1721176816390,0.1375,65483.0,65482.0,0.88149611]
[1721176816602,0.1375,65483.0,65482.0,0.87649611]
[1721176816814,0.1375,65483.0,65482.0,0.88349611]
[1721176817597,0.1375,65483.0,65482.0,0.57806911]
[1721176818442,0.0614,65483.0,65482.0,0.88349611]
[1721176818757,0.0796,65488.0,65487.0,0.76351]
[1721176818958,0.0796,65488.0,65487.0,1.29244692]
[1721176819193,0.0796,65488.0,65487.0,1.30028968]
[1721176819460,0.0796,65488.0,65487.0,1.30028889]
[1721176819659,0.0796,65488.0,65487.0,1.30028903]
[1721176820042,0.0796,65488.0,65487.0,1.30628903]
[1721176820246,0.00836,65489.0,65487.0,1.30628903]
[1721176820247,0.00836,65489.0,65488.0,1.068896]
[1721176820495,0.00836,65489.0,65488.0,1.59649449]
[1721176820686,0.00836,65489.0,65488.0,1.90189349]
[1721176820849,1e-08,65489.0,65488.0,1.95189349]
[1721176821050,1e-08,65489.0,65488.0,2.45729249]
[1721176821264,1e-08,65489.0,65488.0,2.60248207]
[1721176821465,1e-08,65489.0,65488.0,2.55729249]
[1721176821662,1e-08,65489.0,65488.0,2.60248207]
[1721176821928,1e-08,65489.0,65488.0,2.18438307]
[1721176822067,1e-08,65489.0,65488.0,2.14919349]
[1721176822267,1e-08,65489.0,65488.0,2.74438307]
[1721176822486,1e-08,65489.0,65488.0,2.73938307]
[1721176822668,1e-08,65489.0,65488.0,2.74837248]
[1721176823088,1e-08,65489.0,65488.0,2.71237248]
[1721176823290,1e-08,65489.0,65488.0,2.66716317]
[1721176823684,1e-08,65489.0,65488.0,2.16716317]
[1721176823887,1e-08,65489.0,65488.0,2.66716317]
[1721176824115,1e-08,65489.0,65488.0,2.23278143]
[1721176824303,1e-08,65489.0,65488.0,2.79355676]
[1721176824647,1e-08,65489.0,65488.0,2.60703768]
[1721176824822,1e-08,65489.0,65488.0,2.94553804]
[1721176824981,1e-08,65489.0,65488.0,2.99553804]
[1721176825326,1e-08,65489.0,65488.0,3.43709093]
[1721176825621,1e-08,65489.0,65488.0,3.43709555]
[1721176825822,1e-08,65489.0,65488.0,3.31033007]
[1721176826022,1e-08,65489.0,65488.0,3.43709029]
[1721176826462,1e-08,65489.0,65488.0,3.32393178]
[1721176826643,1e-08,65489.0,65488.0,3.43709029]
[1721176827196,1e-08,65489.0,65488.0,3.32393178]
[1721176827420,0.00836,65498.0,65488.0,3.32393178]
[1721176827421,0.00836,65498.0,65497.0,2.429463]
[1721176827606,0.00836,65498.0,65497.0,3.82983713]
[1721176827808,0.00836,65498.0,65497.0,4.7605519]
[1721176828026,0.00836,65498.0,65497.0,4.8005519]
[1721176828227,0.00836,65498.0,65497.0,4.95896551]
[1721176828546,0.00836,65504.0,65503.0,2.377338]
[1721176828751,0.00836,65504.0,65503.0,3.5016578]
[1721176828910,0.05832621,65516.0,65515.0,1.255273]
[1721176828911,0.00836,65516.0,65515.0,1.255273]
[1721176829279,0.00836,65516.0,65515.0,4.00545757]
[1721176829411,0.00836,65516.0,65515.0,3.96410069]
[1721176829608,0.00836,65516.0,65515.0,4.07710131]
[1721176830030,0.00836,65516.0,65515.0,3.97810069]
[1721176830331,0.00836,65516.0,65515.0,3.94210069]
[1721176830529,0.00836,65516.0,65515.0,3.99210069]
[1721176831153,0.00836,65516.0,65515.0,3.9484336]
[1721176831365,0.00836,65516.0,65515.0,4.7304336]
[1721176831773,0.00836,65516.0,65515.0,4.7584336]
[1721176831977,0.00836,65516.0,65515.0,4.74433851]
[1721176832336,1e-06,65516.0,65515.0,4.74433851]
[1721176832473,1e-06,65516.0,65515.0,4.9429994]
[1721176832677,1e-06,65516.0,65515.0,3.97800255]
[1721176832994,1e-06,65516.0,65515.0,3.23433546]
[1721176833195,1e-06,65516.0,65515.0,3.92033546]
[1721176833401,1e-06,65516.0,65515.0,3.23433546]
[1721176833601,1e-06,65516.0,65515.0,3.93433546]
[1721176834572,1e-06,65516.0,65515.0,4.03294169]
[1721176834775,1e-06,65516.0,65515.0,4.04694169]
[1721176834994,1e-06,65516.0,65515.0,4.03294169]
[1721176835194,1e-06,65516.0,65515.0,3.92034702]
[1721176835398,1e-06,65516.0,65515.0,4.0469611]
[1721176835772,1e-08,65528.0,65527.0,2.123476]
[1721176835955,0.00277097,65541.0,65537.0,0.5]
[1721176836153,0.0808,65542.0,65541.0,0.457728]
[1721176836154,0.13068238,65542.0,65541.0,0.457728]
[1721176836353,0.0808,65542.0,65541.0,0.86164563]
[1721176836555,0.0808,65542.0,65541.0,1.17253342]
[1721176837760,0.0635,65547.0,65546.0,0.762822]
[1721176838088,0.0635,65547.0,65546.0,1.16671663]
[1721176838288,0.0635,65547.0,65546.0,1.17244976]
[1721176838654,0.0635,65547.0,65546.0,0.56219176]
[1721176839054,0.1403,65547.0,65546.0,0.25706276]
[1721176839180,0.1403,65547.0,65546.0,0.26206276]
[1721176839384,0.1403,65547.0,65546.0,0.11449876]
[1721176840423,0.597986,65547.0,65546.0,0.10876563]
[1721176840630,0.597986,65547.0,65546.0,0.10376563]
[1721176840832,1.21005374,65547.0,65541.0,0.011]
[1721176841008,0.82092,65542.0,65541.0,0.011]
[1721176841253,1.28044874,65542.0,65541.0,0.011]
[1721176841456,1.58559574,65542.0,65541.0,0.011]
[1721176841658,0.305179,65536.0,65527.0,0.152607]
[1721176841842,0.2227,65532.0,65519.0,0.30525]
[1721176842044,0.0632,65524.0,65515.0,0.07717479]
[1721176842303,0.0632,65516.0,65511.0,0.152644]
[1721176842577,0.0632,65516.0,65512.0,0.152643]
[1721176842916,0.0632,65516.0,65511.0,0.305289]
[1721176843129,0.0632,65516.0,65515.0,0.457909]
[1721176843350,0.0632,65516.0,65515.0,0.8698399]
[1721176843978,0.0632,65516.0,65515.0,0.8788399]
[1721176844454,0.0632,65516.0,65515.0,0.8698399]
[1721176844857,0.0632,65516.0,65515.0,0.5645669]
[1721176845094,0.0632,65516.0,65515.0,0.1066579]
[1721176845294,0.0632,65516.0,65515.0,0.2512939]
[1721176845829,0.0632,65516.0,65515.0,0.2612939]
[1721176845953,0.0632,65516.0,65515.0,0.2702939]
[1721176846399,0.0632,65516.0,65515.0,0.1086579]
[1721176846598,0.0632,65516.0,65515.0,0.1116579]
[1721176846812,0.0632,65516.0,65515.0,0.2642939]
[1721176846982,0.0632,65516.0,65515.0,0.2542939]
[1721176847315,0.0632,65516.0,65515.0,0.2582939]
[1721176847535,0.0632,65516.0,65515.0,0.7162039]
[1721176847693,0.0632,65516.0,65515.0,0.8688399]
[1721176848393,0.0632,65516.0,65515.0,1.1741129]
[1721176848593,0.0632,65516.0,65515.0,1.1701129]
[1721176848810,0.0632,65516.0,65515.0,1.1731129]
[1721176849286,0.0822,65523.0,65518.0,0.5]
[1721176849440,0.0822,65523.0,65522.0,0.45786]
[1721176849635,0.0822,65523.0,65522.0,1.16536605]
[1721176849835,0.0822,65523.0,65522.0,0.24964605]
[1721176850584,0.0822,65523.0,65522.0,0.86012605]
[1721176850959,0.0822,65523.0,65522.0,1.16536605]
[1721176851377,0.0822,65523.0,65522.0,1.16736605]
[1721176851761,0.063,65526.0,65525.0,1.068294]
[1721176851961,0.063,65526.0,65525.0,1.16532005]
[1721176853193,0.0649,65532.0,65531.0,0.457798]
[1721176853362,0.0649,65532.0,65531.0,0.86236329]
[1721176853570,0.0649,65532.0,65531.0,0.09936629]
[1721176854193,0.0649,65532.0,65531.0,0.25196529]
[1721176854580,0.67517874,65532.0,65531.0,0.09936629]
[1721176855004,0.52258174,65532.0,65531.0,0.09936629]
[1721176855204,0.52258174,65532.0,65531.0,0.10612458]
[1721176855567,0.52258174,65532.0,65531.0,0.10512458]
[1721176855773,0.67517874,65532.0,65531.0,0.10512458]
[1721176856013,0.52258174,65532.0,65531.0,0.10512458]
[1721176856273,0.29988174,65532.0,65531.0,0.10512458]
[1721176856446,0.29988174,65532.0,65531.0,0.10612458]
[1721176856650,0.29988174,65532.0,65531.0,0.10036629]
[1721176856858,1.06286674,65532.0,65531.0,0.10036629]
[1721176857070,1.28556674,65532.0,65531.0,0.10036629]
[1721176857237,0.67517874,65532.0,65531.0,0.10036629]
[1721176857440,0.52258174,65532.0,65531.0,0.10036629]
[1721176857778,0.3682,65532.0,65531.0,0.10036629]
[1721176857956,0.1455,65532.0,65531.0,0.10036629]
[1721176858403,0.1455,65532.0,65531.0,0.10612759]
[1721176858605,0.1455,65532.0,65531.0,0.25872659]
[1721176858790,0.1455,65532.0,65531.0,0.10612759]
[1721176859122,0.1455,65532.0,65531.0,0.56392559]
[1721176859256,0.1455,65532.0,65531.0,0.86912459]
[1721176859457,0.1455,65532.0,65531.0,0.56392559]
[1721176860351,0.1455,65532.0,65531.0,0.10612759]
[1721176860870,0.1455,65532.0,65531.0,0.0137613]
[1721176861187,0.1455,65532.0,65531.0,0.0147613]
[1721176861402,0.1455,65532.0,65531.0,0.0167613]
[1721176861602,0.1455,65532.0,65531.0,0.0077613]
[1721176861802,0.1455,65532.0,65531.0,0.0057613]
[1721176862046,0.1455,65532.0,65531.0,0.0107613]
[1721176862258,0.1455,65532.0,65531.0,0.4685593]
[1721176862632,0.1455,65532.0,65531.0,0.56502604]
[1721176864920,0.1455,65532.0,65531.0,0.87022504]
[1721176865120,0.1455,65532.0,65531.0,0.56502604]
[1721176865343,0.1455,65532.0,65531.0,0.56595004]
[1721176868487,0.0627,65537.0,65536.0,0.762937]
[1721176868624,0.0627,65537.0,65536.0,0.86179836]
[1721176868863,0.0627,65537.0,65536.0,0.86755342]
[1721176869027,0.0783,65538.0,65537.0,0.762927]
[1721176869230,0.0783,65544.0,65543.0,0.457714]
[1721176869495,0.0783,65544.0,65543.0,0.56232669]
[1721176870738,0.0783,65544.0,65543.0,0.56632669]
[1721176870942,0.0783,65544.0,65543.0,0.57132669]
[1721176871435,0.06354,65546.0,65545.0,0.762832]
[1721176871577,0.06354,65546.0,65545.0,0.86361411]
[1721176871779,0.00084,65546.0,65545.0,1.16874711]
[1721176871973,0.00084,65546.0,65545.0,2.27016185]
[1721176872172,0.00084,65546.0,65545.0,2.39682984]
[1721176872435,0.00084,65546.0,65545.0,2.70196284]
[1721176872671,0.00084,65546.0,65545.0,2.67529485]
[1721176872818,0.00084,65546.0,65545.0,2.87495761]
[1721176873017,0.04467015,65548.0,65547.0,1.728182]
[1721176873182,0.04467015,65548.0,65547.0,1.92786138]
[1721176873388,0.04467015,65548.0,65547.0,1.97431397]
[1721176873640,0.04467015,65548.0,65547.0,1.59618997]
[1721176873951,0.04467015,65548.0,65547.0,1.44180823]
[1721176874157,0.04467015,65548.0,65547.0,1.39535564]
[1721176874302,0.04467015,65548.0,65547.0,0.10075888]
[1721176874744,0.58021912,65548.0,65547.0,0.10703185]
[1721176875054,0.27232915,65548.0,65547.0,0.11903185]
[1721176875290,0.73182989,65548.0,65547.0,0.11903185]
[1721176875469,1.09794889,65548.0,65547.0,0.11903185]
[1721176875680,0.72777625,65548.0,65547.0,0.09404839]
[1721176875888,0.061,65544.0,65531.0,0.466924]
[1721176876055,0.375279,65540.0,65531.0,0.619523]
[1721176876235,0.15438174,65539.0,65532.0,0.00546637]
[1721176876435,0.152583,65538.0,65532.0,0.00546637]
[1721176876668,0.061,65537.0,65532.0,0.00546637]
[1721176876868,0.061,65537.0,65533.0,0.45778]
[1721176877113,0.061,65544.0,65532.0,0.00546637]
[1721176877423,0.061,65544.0,65539.0,0.152579]
[1721176877552,0.15438174,65543.0,65533.0,0.00546584]
[1721176877755,0.061,65544.0,65540.0,0.0054767]
[1721176878067,0.061,65544.0,65539.0,0.152579]
[1721176878269,0.061,65544.0,65534.0,0.152591]
[1721176878482,0.15438174,65543.0,65540.0,0.0054767]
[1721176879056,0.15438174,65543.0,65533.0,0.153594]
[1721176879057,0.30695474,65543.0,65533.0,0.153594]
[1721176879227,0.15438174,65543.0,65533.0,0.001]
[1721176879462,0.1482,65526.0,65515.0,0.152635]
[1721176879568,0.1482,65526.0,65508.0,0.152652]
[1721176879569,0.152632,65517.0,65508.0,0.152652]
[1721176879778,0.152632,65517.0,65507.0,0.46304871]
[1721176879779,0.0654,65512.0,65507.0,0.46304871]
[1721176879991,0.0633,65519.0,65508.0,0.5402235]
[1721176880212,0.0633,65519.0,65506.0,0.5]
[1721176880427,0.15438174,65518.0,65507.0,0.305309]
[1721176880668,0.15438174,65518.0,65515.0,0.001]
[1721176881077,0.15438174,65518.0,65513.0,0.30528]
[1721176881277,0.15438174,65518.0,65514.0,0.152639]
[1721176881658,0.15438174,65518.0,65506.0,0.002]
[1721176881659,0.0818,65517.0,65506.0,0.002]
[1721176881857,0.2227,65515.0,65506.0,0.001]
[1721176882131,0.15438174,65514.0,65508.0,0.152652]
[1721176882879,0.15438174,65514.0,65506.0,0.153656]
[1721176883076,0.152655,65507.0,65506.0,0.001]
[1721176883291,0.152671,65500.0,65491.0,0.15269]
[1721176883536,0.152671,65500.0,65489.0,0.305393]
[1721176883537,0.15438174,65499.0,65492.0,0.61573771]
[1721176883737,0.15438174,65499.0,65493.0,0.152687]
[1721176884122,0.15438174,65499.0,65475.0,0.466]
[1721176884327,0.2227,65494.0,65479.0,0.305439]
[1721176884621,0.1402,65495.0,65491.0,0.001]
[1721176884819,0.29458174,65495.0,65491.0,0.001]
[1721176885018,0.29458174,65495.0,65492.0,0.00712192]
[1721176885222,0.29458174,65495.0,65491.0,0.152691]
[1721176885387,0.29458174,65495.0,65492.0,0.00712192]
[1721176885583,0.29458174,65495.0,65491.0,0.152691]
[1721176885783,0.29458174,65495.0,65492.0,0.00712192]
[1721176886160,0.1402,65495.0,65493.0,0.152685]
[1721176886321,0.006,65499.0,65498.0,0.152676]
[1721176886555,0.0655,65502.0,65498.0,0.152676]
[1721176886556,0.0655,65502.0,65498.0,0.55776512]
[1721176886723,0.0655,65502.0,65498.0,0.15979365]
[1721176886928,0.0655,65502.0,65498.0,0.00711765]
[1721176886929,0.007,65499.0,65498.0,0.00711765]
[1721176887131,0.0655,65502.0,65496.0,0.15268]
[1721176887534,0.006,65499.0,65497.0,0.00711836]
[1721176887735,0.15438174,65498.0,65497.0,0.00711836]
[1721176887966,0.15438174,65498.0,65493.0,0.458057]
[1721176888154,0.15438174,65498.0,65497.0,0.00711836]
[1721176888384,0.0655,65502.0,65494.0,0.48144273]
[1721176888587,0.005,65502.0,65501.0,0.458007]
[1721176888801,0.005,65502.0,65501.0,1.16758094]
[1721176888979,0.005,65502.0,65501.0,2.2313542]
[1721176889139,0.0638,65532.0,65523.0,0.305233]
[1721176889491,0.0638,65532.0,65531.0,0.152599]
[1721176889712,0.0638,65532.0,65531.0,0.25149694]
[1721176889994,0.0638,65532.0,65531.0,0.10600012]
[1721176890538,0.37077874,65532.0,65531.0,0.09889794]
[1721176890961,0.21818174,65532.0,65531.0,0.1060411]
[1721176891163,0.22018174,65532.0,65531.0,0.10644778]
[1721176891365,0.23418174,65532.0,65531.0,0.09930462]
[1721176891586,0.23218174,65532.0,65531.0,0.09930462]
[1721176891788,0.22318174,65532.0,65531.0,0.10030462]
[1721176891970,0.22918174,65532.0,65531.0,0.10030462]
[1721176892387,0.22318174,65532.0,65531.0,0.10742898]
[1721176892989,0.0688,65532.0,65531.0,0.10742898]
[1721176893675,0.0668,65532.0,65531.0,0.10642898]
[1721176893908,0.003,65532.0,65531.0,0.86942598]
[1721176894127,0.004,65532.0,65531.0,1.17462498]
[1721176894539,0.004,65532.0,65531.0,1.47982398]
[1721176894956,0.003,65532.0,65531.0,1.54552398]
[1721176895156,4.035e-05,65535.0,65534.0,1.873332]
[1721176895371,4.035e-05,65535.0,65534.0,2.22577615]
[1721176895573,4.035e-05,65535.0,65534.0,2.23284317]
[1721176895749,4.035e-05,65535.0,65534.0,1.77327643]
[1721176895956,4.035e-05,65535.0,65534.0,2.23284317]
[1721176896638,4.035e-05,65535.0,65534.0,2.53802817]
[1721176896848,4.035e-05,65535.0,65534.0,3.12188484]
[1721176897040,4.035e-05,65535.0,65534.0,3.18858484]
[1721176897041,0.00104035,65535.0,65534.0,3.18858484]
[1721176897375,4.035e-05,65535.0,65534.0,3.13758261]
[1721176897582,0.00104035,65535.0,65534.0,3.13858261]
[1721176898061,0.00204035,65535.0,65534.0,3.15158261]
[1721176898372,0.00204035,65535.0,65534.0,3.02491317]
[1721176898557,0.00204035,65535.0,65534.0,3.1515816]
[1721176898963,0.00204035,65535.0,65534.0,3.2025816]
[1721176898964,0.00304035,65535.0,65534.0,3.2025816]
[1721176899177,0.00084,65547.0,65544.0,2.628259]
[1721176899386,0.00084,65547.0,65544.0,3.14419759]
[1721176899591,0.00084,65547.0,65546.0,0.812822]
[1721176899815,0.00084,65547.0,65546.0,1.16428925]
[1721176900019,0.00084,65547.0,65546.0,1.42370793]
[1721176900223,0.00084,65547.0,65546.0,1.91883693]
[1721176900433,0.00084,65547.0,65546.0,2.35060929]
[1721176900805,0.00084,65547.0,65546.0,2.54548029]
[1721176901017,0.00084,65547.0,65546.0,2.85060929]
[1721176901218,0.00084,65547.0,65546.0,2.87460929]
[1721176901421,0.00284,65547.0,65546.0,2.88860929]
[1721176901589,0.00284,65547.0,65546.0,2.88760929]
[1721176901849,0.00184,65547.0,65546.0,2.87460929]
[1721176902053,0.00284,65547.0,65546.0,2.87460929]
[1721176902227,0.00184,65547.0,65546.0,2.87360929]
[1721176902460,0.00184,65547.0,65546.0,3.07360929]
[1721176902633,0.00184,65547.0,65546.0,3.07360652]
[1721176902978,0.00184,65547.0,65546.0,2.69547752]
[1721176903159,0.00184,65547.0,65546.0,2.36883693]
[1721176903340,0.00184,65547.0,65546.0,1.98856707]
[1721176903514,0.00184,65547.0,65546.0,2.33543693]
[1721176903515,0.00284,65547.0,65546.0,2.33543693]
[1721176903738,0.00184,65547.0,65546.0,2.01630793]
[1721176904150,0.00835,65551.0,65550.0,0.152555]
[1721176904347,0.00835,65551.0,65550.0,0.65465709]
[1721176904549,0.00835,65551.0,65550.0,1.27147943]
[1721176905162,0.00835,65551.0,65550.0,2.58634596]
[1721176905710,0.00835,65551.0,65550.0,2.59934596]
[1721176905711,0.00935,65551.0,65550.0,2.59934596]
[1721176905835,0.00935,65551.0,65550.0,2.52217117]
[1721176906710,0.00935,65551.0,65550.0,1.80358943]
[1721176906973,0.00935,65551.0,65550.0,2.45797117]
[1721176907170,0.00935,65551.0,65550.0,2.44397117]
[1721176907373,0.00835,65551.0,65550.0,2.43097117]
[1721176907578,0.00835,65551.0,65550.0,1.28547943]
[1721176907784,0.00935,65551.0,65550.0,0.99436943]
[1721176908456,0.00935,65551.0,65550.0,1.79947943]
[1721176908650,0.00935,65551.0,65550.0,1.29947943]
[1721176908809,0.00935,65551.0,65550.0,1.79947943]
[1721176909424,0.00935,65551.0,65550.0,1.95386117]
[1721176910360,0.00935,65551.0,65550.0,1.18925943]
[1721176911466,0.00935,65551.0,65550.0,1.79947943]
[1721176913125,0.14945,65551.0,65550.0,0.28414943]
[1721176913282,0.14945,65551.0,65550.0,0.13159443]
[1721176913481,0.14945,65551.0,65550.0,0.28414943]
[1721176913683,0.14945,65551.0,65550.0,0.57525943]
[1721176913949,0.14945,65551.0,65550.0,0.56125943]
[1721176913950,0.14845,65551.0,65550.0,0.56125943]
[1721176914084,0.14845,65551.0,65550.0,0.26314943]
[1721176914285,0.14845,65551.0,65550.0,0.26914943]
[1721176914489,0.14845,65551.0,65550.0,0.10359443]
[1721176914893,0.14845,65551.0,65550.0,0.26914943]
[1721176915842,0.14845,65551.0,65550.0,0.57425943]
[1721176916436,0.14845,65551.0,65550.0,0.26914943]
[1721176916639,1.06559374,65551.0,65550.0,0.11659443]
[1721176916879,1.06559374,65551.0,65550.0,0.10999209]
[1721176917231,0.301002,65551.0,65550.0,0.10999209]
[1721176917430,0.301002,65551.0,65550.0,0.1159237]
[1721176917637,0.14845,65551.0,65550.0,0.1029237]
[1721176917926,0.14845,65551.0,65550.0,0.09699209]
[1721176918146,0.14845,65551.0,65550.0,0.002]
[1721176918147,0.16345,65551.0,65550.0,0.002]
[1721176918317,0.31877297,65551.0,65550.0,0.00693513]
[1721176918536,0.16622097,65551.0,65550.0,0.09811116]
[1721176918744,0.16845,65551.0,65550.0,0.25066616]
[1721176918895,0.15045,65551.0,65550.0,0.86682472]
[1721176919078,0.01035,65551.0,65550.0,0.86682472]
[1721176919279,0.01035,65551.0,65550.0,1.17193472]
[1721176919487,0.00835,65551.0,65550.0,1.17093472]
[1721176920100,0.00935,65551.0,65550.0,0.56171472]
[1721176920343,0.02135,65551.0,65550.0,0.56271472]
[1721176920543,0.00935,65551.0,65550.0,1.82631646]
[1721176920979,0.00935,65551.0,65550.0,1.82931646]
[1721176921184,0.00835,65551.0,65550.0,2.13342646]
[1721176921315,0.00835,65551.0,65550.0,1.90059361]
[1721176921515,0.01135,65551.0,65550.0,1.77393472]
[1721176921736,0.01135,65551.0,65550.0,2.9466965]
[1721176921991,0.01835,65564.0,65550.0,2.9466965]
[1721176921992,0.0065279,65567.0,65566.0,0.76259]
[1721176922177,0.0065279,65567.0,65566.0,1.16311203]
[1721176922178,0.00355554,65567.0,65566.0,1.16311203]
[1721176922365,0.0773,65571.0,65567.0,0.762577]
[1721176922565,0.0773,65571.0,65567.0,0.55303203]
[1721176922766,0.0773,65571.0,65567.0,0.55923253]
[1721176923395,0.0773,65571.0,65567.0,0.10168653]
[1721176923687,0.250013,65568.0,65567.0,0.10168653]
[1721176924196,0.325413,65568.0,65567.0,0.10368653]
[1721176924439,0.1729,65568.0,65567.0,0.10368653]
[1721176924853,0.00277097,65568.0,65567.0,0.10368653]
[1721176925147,0.00277097,65568.0,65567.0,0.09848603]
[1721176925382,0.15528397,65568.0,65567.0,0.09748603]
[1721176925526,0.00277097,65568.0,65567.0,0.10135227]
[1721176925734,0.152513,65568.0,65567.0,0.11035227]
[1721176926147,1.36004753,65568.0,65567.0,0.11035227]
[1721176926343,1.76564753,65568.0,65567.0,0.09648603]